bitfinex/quotes_BTCUSD_20250428
["timestamp","ask_amount","ask_price","bid_price","bid_amount"]
[1745864733477,0.00866659,94029.0,94028.0,0.19985014]
[1745864733702,0.34,94034.0,94028.0,0.19985014]
[1745864733935,0.00866996,94029.0,94028.0,0.19985014]
[1745864734147,0.34,94033.0,94028.0,0.19985014]
[1745864734354,0.00866996,94029.0,94028.0,0.19985014]
[1745864734570,0.34,94033.0,94028.0,0.19985014]
[1745864734784,0.029895,94032.0,94028.0,0.19985014]
[1745864734993,0.34866659,94031.0,94028.0,0.19985014]
[1745864736269,0.00866659,94031.0,94028.0,0.19985014]
[1745864736413,0.201,94033.0,94028.0,0.19985014]
[1745864736628,0.03856185,94032.0,94028.0,0.19985014]
[1745864736830,0.00866659,94032.0,94028.0,0.19985014]
[1745864737031,0.34,94031.0,94028.0,0.19985014]
[1745864737426,0.341,94031.0,94028.0,0.19985014]
[1745864737609,0.00866659,94030.0,94028.0,0.19985014]
[1745864738456,0.02989889,94029.0,94028.0,0.19985014]
[1745864738659,0.03856885,94029.0,94028.0,0.19985014]
[1745864738791,0.00866996,94029.0,94028.0,0.19985014]
[1745864738976,0.001,94032.0,94028.0,0.19985014]
[1745864739177,0.03856202,94031.0,94028.0,0.19985014]
[1745864739400,0.0298988,94030.0,94028.0,0.19985014]
[1745864739615,0.00866659,94029.0,94028.0,0.19985014]
[1745864740042,0.34,94034.0,94028.0,0.19985014]
[1745864740320,0.0385682,94033.0,94028.0,0.19985014]
[1745864740650,0.02990161,94032.0,94028.0,0.19985014]
[1745864741058,0.0385682,94031.0,94028.0,0.19985014]
[1745864741291,0.02990161,94030.0,94028.0,0.19985014]
[1745864741906,0.00866659,94029.0,94028.0,0.19985014]
[1745864742246,0.0299045,94029.0,94028.0,0.19985014]
[1745864742451,0.00866996,94029.0,94028.0,0.19985014]
[1745864742654,0.54,94034.0,94028.0,0.19985014]
[1745864742868,0.001,94031.0,94028.0,0.19985014]
[1745864743069,0.02990428,94030.0,94028.0,0.19985014]
[1745864743364,0.00866659,94029.0,94028.0,0.19985014]
[1745864743619,0.03857123,94029.0,94028.0,0.19985014]
[1745864744892,0.23857123,94029.0,94028.0,0.10689014]
[1745864745102,0.57857123,94029.0,94028.0,0.10689014]
[1745864749306,0.37857123,94029.0,94028.0,0.10689014]
[1745864752729,0.37957123,94029.0,94028.0,0.15649014]
[1745864757041,0.37957123,94029.0,94028.0,0.10689014]
[1745864758372,0.38704948,94029.0,94028.0,0.10689014]
[1745864758888,0.58704948,94029.0,94028.0,0.10689014]
[1745864761175,0.38704948,94029.0,94028.0,0.10689014]
[1745864764173,0.38704948,94029.0,94028.0,0.15359014]
[1745864764810,0.37957123,94029.0,94028.0,0.15359014]
[1745864768716,0.34966659,94029.0,94028.0,0.15359014]
[1745864769154,0.37957812,94029.0,94028.0,0.15359014]
[1745864772779,0.37957812,94029.0,94028.0,0.10689014]
[1745864773173,0.37957812,94029.0,94028.0,0.19981014]
[1745864774456,0.38705662,94029.0,94028.0,0.19981014]
[1745864777030,0.58705662,94029.0,94028.0,0.19981014]
[1745864780977,0.58705662,94029.0,94028.0,0.10689014]
[1745864781179,0.38705662,94029.0,94028.0,0.10689014]
[1745864783458,0.38705662,94029.0,94028.0,0.15449014]
[1745864784301,0.38705662,94029.0,94028.0,0.10689014]
[1745864784425,0.37957812,94029.0,94028.0,0.10689014]
[1745864786318,0.38705707,94029.0,94028.0,0.10689014]
[1745864787186,0.37957812,94029.0,94028.0,0.10689014]
[1745864789106,0.38705721,94029.0,94028.0,0.10689014]
[1745864792727,0.37957812,94029.0,94028.0,0.10689014]
[1745864792953,0.57957812,94029.0,94028.0,0.10689014]
[1745864794432,0.37957812,94029.0,94028.0,0.10689014]
[1745864798601,0.40681772,94029.0,94028.0,0.10689014]
[1745864798801,0.40681772,94029.0,94025.0,0.09284]
[1745864798802,0.35063512,94028.0,94025.0,0.09284]
[1745864799012,0.02991153,94027.0,94025.0,0.09284]
[1745864799163,0.02991153,94026.0,94025.0,0.09284]
[1745864799573,0.03797899,94026.0,94025.0,0.09284]
[1745864799976,0.24545895,94026.0,94025.0,0.09284]
[1745864802975,0.24645895,94026.0,94025.0,0.09284]
[1745864808900,0.58645895,94026.0,94025.0,0.09284]
[1745864813056,0.58645895,94026.0,94025.0,0.29733014]
[1745864813464,0.54847996,94026.0,94025.0,0.29733014]
[1745864813885,0.55652766,94026.0,94025.0,0.29733014]
[1745864814080,0.35652766,94026.0,94025.0,0.29733014]
[1745864814303,0.3490477,94026.0,94025.0,0.29733014]
[1745864818339,0.3490477,94026.0,94025.0,0.51003952]
[1745864819167,0.0090477,94026.0,94025.0,0.51003952]
[1745864819545,0.001,94026.0,94025.0,0.51003952]
[1745864821311,0.001,94026.0,94025.0,0.52458037]
[1745864826281,0.00013683,94045.0,94044.0,0.30836641]
[1745864826502,0.00013683,94045.0,94044.0,0.41525655]
[1745864827285,0.00213683,94045.0,94044.0,0.41525655]
[1745864828030,0.00213683,94045.0,94044.0,0.20259014]
[1745864828692,0.00213683,94045.0,94044.0,0.15479014]
[1745864829105,0.34213683,94045.0,94044.0,0.15479014]
[1745864829480,0.35026211,94045.0,94044.0,0.15479014]
[1745864830117,0.55026211,94045.0,94044.0,0.15479014]
[1745864830325,0.55026211,94045.0,94044.0,0.10689014]
[1745864831715,0.55772117,94045.0,94044.0,0.10689014]
[1745864837398,0.55026211,94045.0,94044.0,0.10689014]
[1745864838998,0.55772313,94045.0,94044.0,0.10689014]
[1745864839198,0.55772313,94045.0,94039.0,0.09276]
[1745864839412,0.55772313,94045.0,94040.0,0.10689014]
[1745864839766,0.01063332,94044.0,94040.0,0.10689014]
[1745864839974,0.23076502,94043.0,94040.0,0.10689014]
[1745864840323,0.34,94042.0,94040.0,0.10689014]
[1745864840747,0.00814143,94041.0,94040.0,0.10689014]
[1745864841579,0.34,94044.0,94040.0,0.10689014]
[1745864841778,0.0081448,94041.0,94040.0,0.10689014]
[1745864841988,0.34,94044.0,94040.0,0.10689014]
[1745864842185,0.00814559,94041.0,94040.0,0.10689014]
[1745864842393,0.54,94041.0,94040.0,0.10689014]
[1745864842733,0.54814559,94041.0,94040.0,0.10689014]
[1745864842974,0.55561241,94041.0,94040.0,0.10689014]
[1745864843842,0.54914559,94041.0,94040.0,0.10689014]
[1745864845238,0.57900851,94041.0,94040.0,0.10689014]
[1745864846143,0.58647842,94041.0,94040.0,0.10689014]
[1745864854183,0.57900851,94041.0,94040.0,0.10689014]
[1745864856318,0.58648223,94041.0,94040.0,0.10689014]
[1745864860976,0.57900851,94041.0,94040.0,0.10689014]
[1745864863218,0.58648836,94041.0,94040.0,0.10689014]
[1745864866703,0.35063399,94038.0,94034.0,0.14198]
[1745864866917,0.02986292,94037.0,94035.0,0.10689014]
[1745864867122,0.02986292,94036.0,94035.0,0.10689014]
[1745864867324,0.03798334,94036.0,94035.0,0.10689014]
[1745864867854,0.04546319,94036.0,94035.0,0.10689014]
[1745864868069,0.58546319,94036.0,94035.0,0.10689014]
[1745864873702,0.58546319,94036.0,94035.0,0.15349014]
[1745864873872,0.24546319,94036.0,94035.0,0.4118769]
[1745864874113,0.00812042,94036.0,94035.0,0.4118769]
[1745864874306,0.00013683,94045.0,94037.0,0.01063411]
[1745864874510,0.00808675,94044.0,94039.0,0.0466]
[1745864874713,0.00808675,94044.0,94040.0,0.10689014]
[1745864874937,0.02990918,94043.0,94040.0,0.10689014]
[1745864875135,0.01990918,94043.0,94040.0,0.10689014]
[1745864875341,0.00807665,94042.0,94040.0,0.10689014]
[1745864875514,0.01990918,94044.0,94040.0,0.10689014]
[1745864875711,0.00807665,94043.0,94040.0,0.10689014]
[1745864875966,0.00013683,94045.0,94040.0,0.10689014]
[1745864876115,0.001,94043.0,94040.0,0.10689014]
[1745864876320,0.01990918,94042.0,94040.0,0.10689014]
[1745864876725,0.00807665,94041.0,94040.0,0.10689014]
[1745864877289,0.00013683,94045.0,94040.0,0.10689014]
[1745864877436,0.0081208,94041.0,94040.0,0.10689014]
[1745864877636,0.00213683,94045.0,94040.0,0.10689014]
[1745864877840,0.0081208,94041.0,94040.0,0.10689014]
[1745864878037,0.02990328,94041.0,94040.0,0.10689014]
[1745864878222,0.0081208,94041.0,94040.0,0.10689014]
[1745864878423,0.03802408,94041.0,94040.0,0.10689014]
[1745864878787,0.0091208,94041.0,94040.0,0.10689014]
[1745864880736,0.03902139,94041.0,94040.0,0.10689014]
[1745864880932,0.0091208,94041.0,94040.0,0.10689014]
[1745864881465,0.03902131,94041.0,94040.0,0.10689014]
[1745864881604,0.0091208,94041.0,94040.0,0.10689014]
[1745864881804,0.03902035,94041.0,94040.0,0.10689014]
[1745864888084,0.0091208,94041.0,94040.0,0.10689014]
[1745864888924,0.03901861,94041.0,94040.0,0.10689014]
[1745864893411,0.03901861,94041.0,94039.0,0.13928]
[1745864893412,0.21267545,94040.0,94039.0,0.09268]
[1745864893617,0.24257326,94040.0,94039.0,0.09268]
[1745864893805,0.01063467,94032.0,94023.0,0.0931]
[1745864894018,0.21270054,94029.0,94026.0,0.09264]
[1745864894140,0.02989781,94028.0,94027.0,0.10689014]
[1745864894357,0.00807978,94028.0,94027.0,0.10689014]
[1745864894566,0.03797759,94028.0,94027.0,0.10689014]
[1745864896218,0.23797759,94028.0,94027.0,0.10689014]
[1745864896752,0.23897759,94028.0,94027.0,0.10689014]
[1745864899123,0.24644689,94028.0,94027.0,0.10689014]
[1745864899618,0.21654908,94028.0,94027.0,0.10689014]
[1745864899845,0.24642643,94028.0,94027.0,0.10689014]
[1745864904610,0.21654908,94028.0,94027.0,0.10689014]
[1745864907309,0.2163882,94028.0,94027.0,0.10689014]
[1745864909821,0.5563882,94028.0,94027.0,0.10689014]
[1745864912186,0.58624401,94028.0,94027.0,0.10689014]
[1745864912777,0.5563882,94028.0,94027.0,0.10689014]
[1745864917666,0.58624983,94028.0,94027.0,0.10689014]
[1745864919217,0.5563882,94028.0,94027.0,0.10689014]
[1745864920748,0.58625805,94028.0,94027.0,0.10689014]
[1745864924916,0.58625805,94028.0,94013.0,0.0968]
[1745864924917,0.01063614,94019.0,94013.0,0.0968]
[1745864925118,0.02986985,94018.0,94014.0,0.10689014]
[1745864925332,0.00796457,94018.0,94014.0,0.10689014]
[1745864925537,0.03733915,94017.0,94014.0,0.10689014]
[1745864925745,0.02986985,94016.0,94014.0,0.10689014]
[1745864925971,0.00796121,94016.0,94014.0,0.10689014]
[1745864926613,0.0074693,94015.0,94014.0,0.10689014]
[1745864927459,0.002,94019.0,94014.0,0.10689014]
[1745864927670,0.02990556,94018.0,94014.0,0.10689014]
[1745864927882,0.00796121,94018.0,94014.0,0.10689014]
[1745864928090,0.03738302,94017.0,94014.0,0.10689014]
[1745864928295,0.00747808,94017.0,94014.0,0.10689014]
[1745864928506,0.00796121,94016.0,94014.0,0.10689014]
[1745864928941,0.00747808,94017.0,94014.0,0.10689014]
[1745864929155,0.01086601,94018.0,94014.0,0.10689014]
[1745864929156,0.00747808,94015.0,94014.0,0.10689014]
[1745864930953,0.03739062,94015.0,94014.0,0.10689014]
[1745864931565,0.04534722,94015.0,94014.0,0.10689014]
[1745864931772,0.01543468,94015.0,94014.0,0.10689014]
[1745864932772,0.04534612,94015.0,94014.0,0.10689014]
[1745864937945,0.01543468,94015.0,94014.0,0.10689014]
[1745864939362,0.00747808,94015.0,94014.0,0.10689014]
[1745864939565,0.01540435,94015.0,94014.0,0.10689014]
[1745864939762,0.00747808,94015.0,94014.0,0.10689014]
[1745864939997,0.01540435,94015.0,94014.0,0.10689014]
[1745864940198,0.00747808,94015.0,94014.0,0.10689014]
[1745864940402,0.01540435,94015.0,94014.0,0.10689014]
[1745864940624,0.00747808,94015.0,94014.0,0.10689014]
[1745864940807,0.01539624,94015.0,94014.0,0.10689014]
[1745864941017,0.00747808,94015.0,94014.0,0.10689014]
[1745864941180,0.01539624,94015.0,94014.0,0.10689014]
[1745864941377,0.00747808,94015.0,94014.0,0.10689014]
[1745864941978,0.01539624,94015.0,94014.0,0.10689014]
[1745864942179,0.00747808,94015.0,94014.0,0.10689014]
[1745864942380,0.01539624,94015.0,94014.0,0.10689014]
[1745864943711,0.04530001,94015.0,94014.0,0.10689014]
[1745864943894,0.01539624,94015.0,94014.0,0.10689014]
[1745864945001,0.00791816,94015.0,94014.0,0.10689014]
[1745864945184,0.01539414,94015.0,94014.0,0.10689014]
[1745864945392,0.00747598,94015.0,94014.0,0.10689014]
[1745864945598,0.01539751,94015.0,94014.0,0.10689014]
[1745864945800,0.00747598,94015.0,94014.0,0.10689014]
[1745864951421,0.01539672,94015.0,94014.0,0.10689014]
[1745864951649,0.00747598,94015.0,94014.0,0.10689014]
[1745864951766,0.01539672,94015.0,94014.0,0.10689014]
[1745864951968,0.00747598,94015.0,94014.0,0.10689014]
[1745864953924,0.0373867,94015.0,94014.0,0.10689014]
[1745864954562,0.04531419,94015.0,94014.0,0.10689014]
[1745864955014,0.21275237,94006.0,94002.0,0.0008478]
[1745864955244,0.37774312,94005.0,94002.0,0.0008478]
[1745864955673,0.3852191,94005.0,94002.0,0.0008478]
[1745864956109,0.59797374,94005.0,94002.0,0.0008478]
[1745864956355,0.3852191,94005.0,94002.0,0.0008478]
[1745864956561,0.59797374,94005.0,94002.0,0.0008478]
[1745864957256,0.59049776,94005.0,94002.0,0.0008478]
[1745864957458,0.59797061,94005.0,94002.0,0.0008478]
[1745864958244,0.59897061,94005.0,94002.0,0.0008478]
[1745864958968,0.79897061,94005.0,94002.0,0.0008478]
[1745864960626,0.81887508,94005.0,94002.0,0.0008478]
[1745864961037,0.81787508,94005.0,94002.0,0.0008478]
[1745864961205,0.81987508,94005.0,94002.0,0.0008478]
[1745864961629,0.81787508,94005.0,94002.0,0.0008478]
[1745864962045,0.82087508,94005.0,94002.0,0.0008478]
[1745864962234,0.80097061,94005.0,94002.0,0.0008478]
[1745864974012,1.34880198,94005.0,94002.0,0.0008478]
[1745864974309,0.55277048,93998.0,93997.0,0.0008478]
[1745864974623,0.5826812,93998.0,93997.0,0.0008478]
[1745864974827,0.59019171,93998.0,93997.0,0.0008478]
[1745864975150,0.61007408,93998.0,93997.0,0.0008478]
[1745864975440,0.61754693,93998.0,93997.0,0.0008478]
[1745864975843,0.62254693,93998.0,93997.0,0.0008478]
[1745864977022,0.82254693,93998.0,93997.0,0.0008478]
[1745864977589,1.23414693,93998.0,93997.0,0.0008478]
[1745864978016,1.34103707,93998.0,93997.0,0.0008478]
[1745864983354,1.22541693,93998.0,93997.0,0.0008478]
[1745864984520,0.34,93992.0,93989.0,0.0008478]
[1745864984717,0.34,93992.0,93990.0,0.00098405]
[1745864984921,0.54745719,93991.0,93990.0,0.00098405]
[1745864985318,0.57481241,93991.0,93990.0,0.00098405]
[1745864985743,0.78759874,93991.0,93990.0,0.00098405]
[1745864986353,2.36258488,93991.0,93990.0,0.00098405]
[1745864986722,1.96293119,93991.0,93990.0,0.00098405]
[1745864987086,1.96493119,93991.0,93990.0,0.00098405]
[1745864987332,1.68525119,93991.0,93990.0,0.00098405]
[1745864987541,1.44794619,93991.0,93990.0,0.00098405]
[1745864988183,1.44594619,93991.0,93990.0,0.00098405]
[1745864989302,1.34255319,93991.0,93990.0,0.00098405]
[1745864989513,1.22904419,93991.0,93990.0,0.00098405]
[1745864990162,1.23304419,93991.0,93990.0,0.00098405]
[1745864993442,1.02025786,93991.0,93990.0,0.00098405]
[1745864994110,0.82025786,93991.0,93990.0,0.00098405]
[1745864994314,0.81625786,93991.0,93990.0,0.00098405]
[1745864994916,0.81725786,93991.0,93990.0,0.00098405]
[1745864996417,0.81725786,93991.0,93990.0,0.10787419]
[1745864996622,0.78741241,93991.0,93990.0,0.15397419]
[1745864997787,0.77995522,93991.0,93990.0,0.15397419]
[1745864998011,0.37579414,93991.0,93990.0,0.15397419]
[1745864999817,0.37579414,93991.0,93990.0,0.36676278]
[1745865000043,0.37579414,93991.0,93990.0,0.15397419]
[1745865000566,0.37579414,93991.0,93990.0,0.36676278]
[1745865000804,0.03579414,93991.0,93990.0,0.36676278]
[1745865001015,0.03579414,93991.0,93990.0,0.41606278]
[1745865002821,0.03479414,93991.0,93990.0,0.41606278]
[1745865003038,0.03479414,93991.0,93990.0,0.29871419]
[1745865003457,0.03479414,93991.0,93990.0,0.29571419]
[1745865003739,0.03479414,93991.0,93990.0,0.29771419]
[1745865007976,0.02732129,93991.0,93990.0,0.29771419]
[1745865014048,0.02732129,93991.0,93990.0,0.51050278]
[1745865014893,0.02732129,93991.0,93990.0,0.29771419]
[1745865017515,0.01988237,93991.0,93990.0,0.29771419]
[1745865019999,0.02735522,93991.0,93990.0,0.29771419]
[1745865021809,0.02735522,93991.0,93990.0,0.51050278]
[1745865029017,0.02735522,93991.0,93990.0,0.41806278]
[1745865029225,0.02735522,93991.0,93990.0,0.51042278]
[1745865035081,0.01988237,93991.0,93990.0,0.51042278]
[1745865035767,0.54,94009.0,93994.0,0.01063897]
[1745865036028,0.02992216,94008.0,93995.0,0.10689014]
[1745865036234,0.06252422,94008.0,93995.0,0.10689014]
[1745865036384,0.02992216,94007.0,93995.0,0.10689014]
[1745865036589,0.02992216,94006.0,93995.0,0.10689014]
[1745865036908,0.02992216,94005.0,93995.0,0.10689014]
[1745865037115,0.04986973,94005.0,93995.0,0.10689014]
[1745865037323,0.03740236,94004.0,93996.0,0.09236]
[1745865037531,0.06252085,94004.0,93997.0,0.10689014]
[1745865037739,0.02992216,94003.0,93997.0,0.10689014]
[1745865038144,0.03259195,94002.0,93997.0,0.10689014]
[1745865038464,0.04986973,94001.0,93997.0,0.10689014]
[1745865038675,0.02992216,94000.0,93997.0,0.10689014]
[1745865039026,0.02742777,93999.0,93997.0,0.10689014]
[1745865039593,0.01994757,93998.0,93997.0,0.10689014]
[1745865040200,0.02742777,93998.0,93997.0,0.10689014]
[1745865042049,0.02742777,93998.0,93997.0,0.10789014]
[1745865042414,0.05734943,93998.0,93997.0,0.10789014]
[1745865043024,0.02742777,93998.0,93997.0,0.10789014]
[1745865043971,0.05734964,93998.0,93997.0,0.10789014]
[1745865044766,0.02742777,93998.0,93997.0,0.10789014]
[1745865046731,0.02742777,93998.0,93997.0,0.001]
[1745865046939,0.6101229,93998.0,93997.0,0.001]
[1745865047188,0.81526761,93998.0,93997.0,0.001]
[1745865047405,0.60249713,93998.0,93997.0,0.001]
[1745865048071,0.34,93997.0,93990.0,0.00098405]
[1745865048269,0.02992465,93996.0,93991.0,0.10689014]
[1745865048468,0.03508621,93995.0,93991.0,0.10689014]
[1745865048673,0.01994757,93994.0,93991.0,0.10689014]
[1745865048805,0.04987222,93994.0,93991.0,0.10689014]
[1745865049013,0.04987222,93993.0,93991.0,0.10689014]
[1745865049216,0.03508621,93992.0,93991.0,0.10689014]
[1745865049461,0.04256641,93992.0,93991.0,0.10689014]
[1745865050056,0.06251398,93992.0,93991.0,0.10689014]
[1745865050865,0.04256641,93992.0,93991.0,0.10689014]
[1745865053145,0.03740485,93992.0,93991.0,0.10689014]
[1745865054125,0.0074802,93992.0,93991.0,0.10689014]
[1745865055933,0.03737486,93992.0,93991.0,0.10689014]
[1745865056141,0.0074802,93992.0,93991.0,0.10689014]
[1745865056549,0.0074802,93992.0,93991.0,0.15539014]
[1745865056699,0.0074802,93992.0,93991.0,0.20239014]
[1745865063814,0.01991751,93992.0,93991.0,0.20239014]
[1745865065442,0.01991751,93992.0,93991.0,0.41517647]
[1745865065842,0.0074802,93994.0,93993.0,0.2127818]
[1745865066043,0.0074802,93996.0,93995.0,0.21277727]
[1745865066284,0.0074802,93996.0,93995.0,0.31966741]
[1745865068088,0.0074802,93996.0,93995.0,0.32166741]
[1745865068290,0.0074802,93996.0,93995.0,0.36926741]
[1745865068553,0.0074802,93996.0,93995.0,0.43270826]
[1745865069192,0.02,93997.0,93995.0,0.43270826]
[1745865069193,0.02,93997.0,93996.0,0.22731586]
[1745865069419,0.02,93997.0,93996.0,0.431606]
[1745865071057,0.02,93997.0,93996.0,0.435606]
[1745865086088,0.02,93997.0,93996.0,0.22283099]
[1745865086267,0.02,93997.0,93996.0,0.15989014]
[1745865086468,0.03047991,93997.0,93996.0,0.20313014]
[1745865087089,0.02,93997.0,93996.0,0.20313014]
[1745865087437,0.02,93997.0,93996.0,0.19913014]
[1745865088894,0.02,93997.0,93996.0,0.41190515]
[1745865089481,0.02,93997.0,93996.0,0.41590515]
[1745865089881,0.02,93997.0,93996.0,0.20313014]
[1745865090046,0.02,93997.0,93996.0,0.41590515]
[1745865094472,0.02,93997.0,93996.0,0.523546]
[1745865096650,0.02,93997.0,93996.0,0.93464599]
[1745865098566,0.02,93997.0,93996.0,0.93064599]
[1745865098769,0.02,93997.0,93996.0,0.93464599]
[1745865103245,0.000424,94035.0,94029.0,0.01063501]
[1745865103487,0.000424,94035.0,94034.0,0.21268902]
[1745865103710,0.000424,94035.0,94034.0,0.31957916]
[1745865104424,0.0005608,94035.0,94034.0,0.31957916]
[1745865104857,0.0005608,94035.0,94034.0,0.33412001]
[1745865105080,0.0005608,94035.0,94034.0,0.43022001]
[1745865105298,0.0035608,94035.0,94034.0,0.43022001]
[1745865105731,0.0005608,94035.0,94034.0,0.43022001]
[1745865107509,0.0005608,94035.0,94034.0,0.52238001]
[1745865107756,0.0005608,94035.0,94034.0,0.52338001]
[1745865120992,0.0005608,94035.0,94034.0,0.47638001]
[1745865121483,0.01101292,94035.0,94034.0,0.24915014]
[1745865121726,0.0005608,94035.0,94034.0,0.24915014]
[1745865123024,0.0005608,94035.0,94034.0,0.46183916]
[1745865124536,0.0005608,94035.0,94034.0,0.24915014]
[1745865124754,0.0005608,94035.0,94034.0,0.20005014]
[1745865125848,0.0005608,94035.0,94034.0,0.19905014]
[1745865126048,0.0015608,94035.0,94034.0,0.19905014]
[1745865126476,0.0005608,94035.0,94034.0,0.19905014]
[1745865126878,0.0035608,94035.0,94034.0,0.19905014]
[1745865132494,0.00836874,94035.0,94034.0,0.19905014]
[1745865132618,0.01581958,94035.0,94034.0,0.19905014]
[1745865133443,0.56850634,94035.0,94034.0,0.09216]
[1745865134055,0.79831061,94035.0,94034.0,0.09216]
[1745865136695,0.58562385,94035.0,94034.0,0.09216]
[1745865136960,0.79831061,94035.0,94034.0,0.09216]
[1745865137180,0.58562385,94035.0,94034.0,0.19905014]
[1745865137391,0.55581958,94035.0,94034.0,0.19905014]
[1745865138010,0.55281958,94035.0,94034.0,0.19905014]
[1745865138239,0.3548243,94035.0,94034.0,0.19905014]
[1745865138449,0.3548243,94035.0,94034.0,0.09216]
[1745865139062,0.34,94034.0,94029.0,0.09212]
[1745865139199,0.34,94034.0,94030.0,0.10689014]
[1745865139422,0.01221888,94033.0,94030.0,0.10689014]
[1745865140273,0.00745556,94032.0,94030.0,0.10689014]
[1745865140490,0.00475995,94031.0,94030.0,0.10689014]
[1745865141769,0.01221551,94031.0,94030.0,0.10689014]
[1745865142484,0.01321551,94031.0,94030.0,0.10689014]
[1745865143712,0.00575995,94031.0,94030.0,0.10689014]
[1745865144564,0.00576332,94031.0,94030.0,0.36708821]
[1745865145088,0.00576332,94031.0,94030.0,0.41448821]
[1745865145660,0.00576332,94031.0,94030.0,0.20179014]
[1745865145897,0.001,94031.0,94030.0,0.15429014]
[1745865146548,0.001,94031.0,94030.0,0.36698821]
[1745865151358,0.001,94031.0,94030.0,0.41318821]
[1745865152043,0.001,94031.0,94030.0,0.42772906]
[1745865153004,0.0005608,94035.0,94034.0,0.22722987]
[1745865153202,0.0005608,94035.0,94034.0,0.37952001]
[1745865154989,0.0005608,94035.0,94034.0,0.38052001]
[1745865166811,0.0005608,94035.0,94034.0,0.10789014]
[1745865167230,0.0005608,94035.0,94034.0,0.19997014]
[1745865167834,0.0005608,94035.0,94034.0,0.19897014]
[1745865170358,0.00801802,94035.0,94034.0,0.19897014]
[1745865170794,0.01287858,94035.0,94034.0,0.19897014]
[1745865171492,0.00542136,94035.0,94034.0,0.19897014]
[1745865175263,0.0005608,94035.0,94034.0,0.19897014]
[1745865180794,0.00537432,94035.0,94034.0,0.19897014]
[1745865181681,0.01283388,94035.0,94034.0,0.19897014]
[1745865181873,0.01483388,94035.0,94034.0,0.19897014]
[1745865183092,0.01283388,94035.0,94034.0,0.10689014]
[1745865183392,0.01383388,94035.0,94034.0,0.10689014]
[1745865189621,0.35383388,94035.0,94034.0,0.10689014]
[1745865189826,0.38366424,94035.0,94034.0,0.10689014]
[1745865190473,0.35383388,94035.0,94034.0,0.10689014]
[1745865194358,0.35383388,94035.0,94034.0,0.15469014]
[1745865197077,0.38367911,94035.0,94034.0,0.15469014]
[1745865197280,0.35383388,94035.0,94034.0,0.15469014]
[1745865197886,0.38368213,94035.0,94034.0,0.15469014]
[1745865198034,0.38368213,94035.0,94034.0,0.10689014]
[1745865199462,0.34,94034.0,94031.0,0.09208]
[1745865199858,0.0346072,94033.0,94031.0,0.09208]
[1745865200060,0.02984825,94032.0,94031.0,0.09208]
[1745865200483,0.01222507,94032.0,94031.0,0.09208]
[1745865200650,0.04207332,94032.0,94031.0,0.09208]
[1745865202623,0.04307332,94032.0,94031.0,0.09208]
[1745865204374,0.01322507,94032.0,94031.0,0.19897014]
[1745865204799,0.00845956,94032.0,94031.0,0.19897014]
[1745865207401,0.03831824,94032.0,94031.0,0.19897014]
[1745865207615,0.00845956,94032.0,94031.0,0.19897014]
[1745865209308,0.03831894,94032.0,94031.0,0.19897014]
[1745865212442,0.03831894,94032.0,94031.0,0.10689014]
[1745865212662,0.01063546,94025.0,94013.0,0.0461]
[1745865212862,0.21662024,94023.0,94014.0,0.19897014]
[1745865213066,0.02985938,94022.0,94015.0,0.09208]
[1745865213369,0.01224453,94022.0,94016.0,0.10689014]
[1745865213957,0.00745956,94021.0,94016.0,0.10689014]
[1745865214269,0.00477824,94020.0,94016.0,0.10689014]
[1745865215209,0.00745956,94019.0,94016.0,0.10689014]
[1745865216136,0.01830305,94019.0,94016.0,0.10689014]
[1745865216353,0.00745956,94018.0,94016.0,0.10789014]
[1745865216810,0.00745956,94018.0,94016.0,0.10689014]
[1745865217034,0.00745956,94018.0,94016.0,0.10789014]
[1745865217286,0.00745956,94017.0,94016.0,0.10789014]
[1745865217518,0.00745956,94017.0,94016.0,0.10689014]
[1745865218509,0.00745956,94017.0,94016.0,0.10889014]
[1745865218713,0.01220915,94017.0,94016.0,0.10889014]
[1745865219586,0.01220915,94017.0,94016.0,0.10689014]
[1745865219810,0.01320915,94017.0,94016.0,0.10689014]
[1745865220300,0.00845956,94017.0,94016.0,0.10689014]
[1745865220529,0.01316017,94017.0,94016.0,0.10689014]
[1745865224942,0.00845956,94017.0,94016.0,0.10689014]
[1745865225397,0.01310282,94017.0,94016.0,0.10689014]
[1745865227745,0.01310282,94017.0,94015.0,0.09208]
[1745865227746,0.21272974,94016.0,94015.0,0.09208]
[1745865227992,0.55737637,94016.0,94015.0,0.09208]
[1745865228564,0.56483593,94016.0,94015.0,0.09208]
[1745865228785,0.59464669,94016.0,94015.0,0.09208]
[1745865229440,0.58291695,94016.0,94015.0,0.09208]
[1745865230274,0.79564669,94016.0,94015.0,0.09208]
[1745865230480,0.58191695,94016.0,94015.0,0.09208]
[1745865230698,0.58491695,94016.0,94015.0,0.09208]
[1745865230902,0.79764669,94016.0,94015.0,0.09208]
[1745865232411,0.79764669,94016.0,94003.0,0.0934]
[1745865232412,0.01063716,94010.0,94003.0,0.0934]
[1745865232640,0.34,94005.0,94004.0,0.10689014]
[1745865233139,0.34448275,94005.0,94004.0,0.10689014]
[1745865233614,0.00448275,94005.0,94004.0,0.10689014]
[1745865234019,4.558e-05,94005.0,94004.0,0.10689014]
[1745865234230,0.20452833,94005.0,94004.0,0.10689014]
[1745865234430,0.20004558,94005.0,94004.0,0.10689014]
[1745865234586,0.20452328,94005.0,94004.0,0.10689014]
[1745865235355,0.54452328,94005.0,94004.0,0.10689014]
[1745865236453,0.55298284,94005.0,94004.0,0.10689014]
[1745865236856,0.55198284,94005.0,94004.0,0.10689014]
[1745865237060,0.34552328,94005.0,94004.0,0.10689014]
[1745865240900,0.35298284,94005.0,94004.0,0.15459014]
[1745865243328,0.35298284,94005.0,94003.0,0.09208]
[1745865243532,0.01063863,93997.0,93994.0,0.0469]
[1745865243740,0.0150412,93996.0,93989.0,0.0008478]
[1745865243937,0.00745956,93995.0,93991.0,0.10689014]
[1745865244153,0.00435062,93994.0,93991.0,0.10689014]
[1745865244801,0.2127818,93993.0,93991.0,0.10689014]
[1745865245045,0.34,93992.0,93991.0,0.10689014]
[1745865245238,0.34435062,93992.0,93991.0,0.10689014]
[1745865246222,0.00435062,93992.0,93991.0,0.10689014]
[1745865246428,0.35063897,93994.0,93991.0,0.10689014]
[1745865246659,0.00435062,93993.0,93991.0,0.10689014]
[1745865250705,0.55278633,93991.0,93989.0,0.0008478]
[1745865250923,0.55706046,93991.0,93989.0,0.0008478]
[1745865251329,0.56452002,93991.0,93989.0,0.0008478]
[1745865251650,0.35173369,93991.0,93989.0,0.0008478]
[1745865251858,0.3715737,93991.0,93989.0,0.0008478]
[1745865253027,0.5715737,93991.0,93989.0,0.0008478]
[1745865255108,0.3715737,93991.0,93989.0,0.0008478]
[1745865257297,0.36411414,93991.0,93989.0,0.0008478]
[1745865257902,0.3715737,93991.0,93989.0,0.0008478]
[1745865260969,0.58436003,93991.0,93989.0,0.0008478]
[1745865261394,0.3715737,93991.0,93989.0,0.0008478]
[1745865262007,0.58436003,93991.0,93989.0,0.0008478]